fUST/lending_fUST_20260410
["ID","MTS","AMOUNT","RATE_DAILY","PERIOD"]
[420192416,1775766665301,-3445.23,0.00020273,18]
[420192417,1775766665312,-500.0,0.00020273,18]
[420192418,1775766665321,-500.0,0.00020273,18]
[420192419,1775766665337,-829.97,0.00020273,18]
[420192420,1775766665357,-526.24,0.00020273,18]
[420192421,1775766665366,-3068.48,0.00020273,18]
[420192422,1775766665375,-500.0,0.00020273,18]
[420192423,1775766665385,-500.0,0.00020273,18]
[420192424,1775766665394,-936.3,0.00020273,18]
[420192425,1775766665403,-500.0,0.00020273,18]
[420192426,1775766665412,-895.72,0.00020273,18]
[420192427,1775766665422,-500.0,0.00020273,18]
[420192428,1775766665431,-614.65,0.00020273,18]
[420192429,1775766665440,-405.90699599,0.00020273,18]
[420192430,1775766665450,-500.0,0.00020273,18]
[420192431,1775766665479,-500.0,0.00020273,18]
[420192432,1775766665488,-500.0,0.00020273,18]
[420192433,1775766665498,-1146.61,0.00020273,18]
[420192434,1775766665507,-500.0,0.00020273,18]
[420192435,1775766665516,-4391.38,0.00020273,18]
[420192436,1775766665526,-500.0,0.00020273,18]
[420192437,1775766665535,-500.0,0.00020273,18]
[420192438,1775766665557,-500.0,0.00020273,10]
[420192439,1775766665597,-562.43,0.00020273,18]
[420192440,1775766665607,-500.0,0.00020273,18]
[420192441,1775766665617,-1959.62,0.00020273,18]
[420192442,1775766665626,-672.44,0.00020273,18]
[420192443,1775766665636,-500.0,0.00020273,18]
[420192444,1775766665645,-823.87,0.00020273,18]
[420192445,1775766665654,-500.0,0.00020273,18]
[420192446,1775766665665,-500.0,0.00020273,18]
[420192447,1775766665674,-500.0,0.00020273,18]
[420192448,1775766665683,-500.0,0.00020273,18]
[420192449,1775766665694,-576.45862313,0.00020273,18]
[420192450,1775766665704,-500.0,0.00020273,18]
[420192451,1775766665713,-567.98,0.00020273,2]
[420192452,1775766665722,-1414.24,0.00020273,18]
[420192453,1775766665751,-2772.16,0.00020273,18]
[420192454,1775766665777,-500.0,0.00020273,18]
[420192455,1775766665787,-3885.4,0.00020273,18]
[420192456,1775766665796,-500.0,0.00020273,18]
[420192457,1775766665805,-685.82,0.00020273,18]
[420192458,1775766665817,-3710.64,0.00020273,18]
[420192459,1775766665826,-450.93853712,0.00020273,18]
[420192460,1775766665835,-526.02198952,0.00020273,18]
[420192461,1775766665848,-500.0,0.00020273,18]
[420192462,1775766665857,-534.61,0.00020273,18]
[420192463,1775766665867,-500.0,0.00020273,18]
[420192464,1775766665876,-1416.98,0.00020273,18]
[420192465,1775766665886,-500.0,0.00020273,18]
[420192466,1775766665895,-1493.89,0.00020273,18]
[420192467,1775766665905,-500.0,0.00020273,18]
[420192468,1775766665923,-500.0,0.00020273,18]
[420192469,1775766665942,-708.81,0.00020273,18]
[420192470,1775766665964,-500.0,0.00020273,18]
[420192471,1775766665973,-500.0,0.00020273,18]
[420192472,1775766665982,-500.0,0.00020273,18]
[420192473,1775766665992,-500.0,0.00020273,18]
[420192474,1775766666004,-500.0,0.00020273,18]
[420192475,1775766666014,-1287.09,0.00020273,18]
[420192476,1775766666037,-2674.21,0.00020273,18]
[420192477,1775766666057,-1078.72,0.00020273,18]
[420192478,1775766666066,-754.28,0.00020273,18]
[420192479,1775766666076,-500.0,0.00020273,18]
[420192480,1775766666087,-548.64,0.00020273,18]
[420192481,1775766666096,-500.0,0.00020273,18]
[420192482,1775766666105,-361.26324051,0.00020273,18]
[420192483,1775766666116,-1305.51,0.00020273,18]
[420192484,1775766666126,-744.62,0.00020273,18]
[420192485,1775766666135,-637.7,0.00020273,18]
[420192486,1775766666144,-832.3,0.00020273,18]
[420192487,1775766666154,-4558.28,0.00020273,18]
[420192488,1775766666164,-500.0,0.00020273,18]
[420192489,1775766666179,-283.62144682,0.00020273,18]
[420192490,1775766666210,-500.0,0.00020273,18]
[420192491,1775766666222,-197.45699239,0.00020273,18]
[420192492,1775766666231,-500.0,0.00020273,18]
[420192493,1775766666240,-500.0,0.00020273,18]
[420192494,1775766666250,-323.56275437,0.00020273,18]
[420192495,1775766666260,-570.18,0.00020273,18]
[420192496,1775766666270,-500.0,0.00020273,18]
[420192497,1775766666280,-1238.51,0.00020273,18]
[420192498,1775766666289,-500.0,0.00020273,18]
[420192499,1775766666299,-500.0,0.00020273,18]
[420192500,1775766666309,-500.0,0.00020273,18]
[420192501,1775766666319,-501.34073913,0.00020273,18]
[420192502,1775766666332,-4694.49,0.00020273,18]
[420192503,1775766666375,-500.0,0.00020273,18]
[420192504,1775766666385,-500.0,0.00020273,18]
[420192505,1775766666394,-590.05,0.00020273,18]
[420192506,1775766666409,-985.9,0.00020273,18]
[420192507,1775766666418,-977.31,0.00020273,18]
[420192508,1775766666428,-500.0,0.00020273,18]
[420192509,1775766666438,-2267.05,0.00020273,18]
[420192510,1775766666448,-1858.85,0.00020273,18]
[420192511,1775766666458,-1003.71,0.00020273,18]
[420192512,1775766666468,-500.0,0.00020273,18]
[420192513,1775766666478,-500.0,0.00020273,11]
[420192514,1775766666488,-11765.07,0.00020273,18]
[420192515,1775766666518,-4361.65,0.00020273,18]
[420192516,1775766666528,-500.0,0.00020273,18]
[420192517,1775766666538,-1856.84,0.00020273,18]
[420192518,1775766666547,-533.93,0.00020273,18]
[420192519,1775766666557,-500.0,0.00020273,18]
[420192520,1775766666567,-500.0,0.00020273,18]
[420192521,1775766666576,-500.0,0.00020273,18]
[420192522,1775766666598,-643.76,0.00020273,18]
[420192523,1775766666610,-500.0,0.00020273,18]
[420192524,1775766666620,-2104.89,0.00020273,18]
[420192525,1775766666630,-585.97,0.00020273,18]
[420192526,1775766666639,-500.0,0.00020273,18]
[420192527,1775766666649,-3395.96,0.00020273,18]
[420192528,1775766666659,-1427.81,0.00020273,18]
[420192529,1775766666669,-10016.59,0.00020273,18]
[420192530,1775766666678,-2929.8,0.00020273,18]
[420192531,1775766666688,-750.56,0.00020273,18]
[420192532,1775766666698,-604.91,0.00020273,18]
[420192533,1775766666707,-524.9,0.00020273,18]
[420192534,1775766666717,-3291.29,0.00020273,18]
[420192535,1775766666726,-631.07,0.00020273,18]
[420192536,1775766666738,-1282.71,0.00020273,18]
[420192537,1775766666753,-500.0,0.00020273,18]
[420192538,1775766666768,-3430.82,0.00020273,18]
[420192539,1775766666777,-500.0,0.00020273,18]
[420192540,1775766666787,-190.77429202,0.00020273,18]
[420192541,1775766666797,-500.0,0.00020273,18]
[420192542,1775766666806,-500.0,0.00020273,18]
[420192543,1775766666816,-4330.12,0.00020273,18]
[420192544,1775766666825,-3992.24,0.00020273,18]
[420192545,1775766666835,-1093.98,0.00020273,18]
[420192546,1775766666846,-159.16308272,0.00020273,18]
[420192547,1775766666875,-500.0,0.00020273,18]
[420192548,1775766666884,-608.9,0.00020273,18]
[420192549,1775766666894,-502.78,0.00020273,2]
[420192550,1775766666904,-624.47,0.00020273,18]
[420192551,1775766666913,-3264.76,0.00020273,18]
[420192552,1775766666923,-163.0,0.000204,2]
[420192553,1775766666932,-164.0,0.000204,2]
[420192554,1775766666941,-564.9865239,0.00020546,18]
[420192555,1775766666951,-564.9865239,0.00020546,18]
[420192556,1775766666962,-564.9865239,0.00020546,18]
[420192557,1775766666971,-564.9865239,0.00020546,18]
[420192558,1775766666981,-564.9865239,0.00020546,18]
[420192559,1775766666993,-564.9865239,0.00020546,18]
[420192560,1775766667019,-3554.3286,0.00020547,18]
[420192561,1775766667029,-2221.4554,0.00020547,18]
[420192562,1775766667040,-427.68099546,0.00020547,18]
[420192563,1775766667049,-500.0,0.00020547,18]
[420192564,1775766667060,-500.0,0.00020547,18]
[420192565,1775766667070,-500.0,0.00020547,18]
[420192566,1775766667080,-500.0,0.00020547,18]
[420192567,1775766667122,-683.85,0.00020547,18]
[420192568,1775766667134,-500.0,0.00020547,18]
[420192569,1775766667144,-500.0,0.00020547,18]
[420192570,1775766667154,-644.38,0.00020547,18]
[420192571,1775766667168,-500.0,0.00020547,18]
[420192572,1775766667227,-500.0,0.00020547,18]
[420192573,1775766667239,-500.0,0.00020547,18]
[420192574,1775766667249,-500.0,0.00020547,18]
[420192575,1775766667269,-500.0,0.00020547,18]
[420192576,1775766667278,-592.05633774,0.00020547,18]
[420192577,1775766667297,-526.96,0.00020547,18]
[420192578,1775766667306,-500.0,0.00020547,18]
[420192579,1775766667316,-500.0,0.00020547,18]
[420192580,1775766667327,-500.0,0.00020547,18]
[420192581,1775766667336,-500.0,0.00020547,18]
[420192582,1775766667346,-500.0,0.00020547,18]
[420192583,1775766667361,-500.0,0.00020547,18]
[420192584,1775766667371,-500.0,0.00020547,18]
[420192585,1775766667380,-829.51,0.00020547,18]
[420192586,1775766667392,-500.0,0.00020547,18]
[420192587,1775766667401,-500.0,0.00020547,18]
[420192588,1775766667411,-554.19,0.00020547,18]
[420192589,1775766667434,-500.0,0.00020547,18]
[420192590,1775766667443,-533.08,0.00020547,18]
[420192591,1775766667453,-500.0,0.00020547,18]
[420192592,1775766667462,-500.0,0.00020547,18]
[420192593,1775766667480,-500.0,0.00020547,18]
[420192594,1775766667521,-547.55,0.00020547,18]
[420192595,1775766667531,-889.68,0.00020547,18]
[420192596,1775766667541,-552.09,0.00020547,18]
[420192597,1775766667551,-804.52,0.00020547,18]
[420192598,1775766667561,-500.0,0.00020547,18]
[420192599,1775766667570,-500.0,0.00020547,18]
[420192600,1775766667581,-271.45920012,0.00020547,18]
[420192601,1775766667591,-500.0,0.00020547,18]
[420192602,1775766667602,-500.0,0.00020547,18]
[420192603,1775766667612,-500.0,0.00020547,18]
[420192604,1775766667624,-500.0,0.00020547,18]
[420192605,1775766667638,-500.0,0.00020547,18]
[420192606,1775766667653,-500.0,0.00020547,18]
[420192607,1775766667681,-500.0,0.00020547,18]
[420192608,1775766667692,-500.0,0.00020547,18]
[420192609,1775766667702,-500.0,0.00020547,18]
[420192610,1775766667712,-500.0,0.00020547,18]
[420192611,1775766667723,-500.0,0.00020547,18]
[420192612,1775766667734,-1468.21,0.00020547,18]
[420192613,1775766667745,-504.23837625,0.00020547,18]
[420192614,1775766667761,-500.0,0.00020547,18]
[420192615,1775766667772,-558.75,0.00020547,18]
[420192616,1775766667782,-648.9,0.00020547,18]
[420192617,1775766667796,-832.38894525,0.00020547,2]
[420192618,1775766667806,-500.0,0.00020547,18]
[420192619,1775766667821,-500.0,0.00020547,18]
[420192620,1775766667840,-500.0,0.00020547,18]
[420192621,1775766667850,-500.0,0.00020547,18]
[420192622,1775766667860,-500.0,0.00020547,18]
[420192623,1775766667871,-2771.98,0.00020547,18]
[420192624,1775766667881,-500.0,0.00020547,18]
[420192625,1775766667891,-999.54,0.00020547,18]
[420192626,1775766667912,-500.0,0.00020547,18]
[420192627,1775766667928,-838.45,0.00020547,18]
[420192628,1775766667939,-500.0,0.00020547,18]
[420192629,1775766667950,-500.0,0.00020547,18]
[420192630,1775766667961,-500.0,0.00020547,18]
[420192631,1775766667972,-500.0,0.00020547,18]
[420192632,1775766667982,-1899.82,0.00020547,18]
[420192633,1775766667993,-500.0,0.00020547,18]
[420192634,1775766668002,-2235.08,0.00020547,18]
[420192635,1775766668013,-500.0,0.00020547,7]
[420192636,1775766668029,-500.0,0.00020547,18]
[420192637,1775766668052,-500.0,0.00020547,18]
[420192638,1775766668062,-912.12,0.00020547,18]
[420192639,1775766668072,-500.0,0.00020547,18]
[420192640,1775766668082,-2544.6,0.00020547,18]
[420192641,1775766668094,-500.0,0.00020547,18]
[420192642,1775766668104,-806.95,0.00020547,18]
[420192643,1775766668127,-1370.28,0.00020547,18]
[420192644,1775766668143,-1525.55,0.00020547,18]
[420192645,1775766668154,-500.0,0.00020547,18]
[420192646,1775766668166,-824.45,0.00020547,18]
[420192647,1775766668176,-500.0,0.00020547,18]
[420192648,1775766668187,-550.46,0.00020547,18]
[420192649,1775766668197,-500.0,0.00020547,18]
[420192650,1775766668221,-500.0,0.00020547,18]
[420192651,1775766668239,-334.58328623,0.00020547,18]
[420192652,1775766668249,-500.0,0.00020547,18]
[420192653,1775766668260,-500.0,0.00020547,18]
[420192654,1775766668271,-978.3,0.00020547,18]
[420192655,1775766668282,-500.0,0.00020547,18]
[420192656,1775766668292,-1172.16,0.00020547,18]
[420192657,1775766668303,-500.0,0.00020547,18]
[420192658,1775766668313,-1515.63,0.00020547,18]
[420192659,1775766668322,-1317.81,0.00020547,18]
[420192660,1775766668333,-1519.7,0.00020547,18]
[420192661,1775766668352,-500.0,0.00020547,18]
[420192662,1775766668378,-634.88293549,0.00020547,18]
[420192663,1775766668388,-264.7190877,0.00020547,18]
[420192664,1775766668398,-237.68275829,0.00020547,18]
[420192665,1775766668408,-500.0,0.00020547,18]
[420192666,1775766668419,-1813.31,0.00020547,18]
[420192667,1775766668430,-500.0,0.00020547,18]
[420192668,1775766668444,-500.0,0.00020547,18]
[420192669,1775766668485,-749.15,0.00020547,18]
[420192670,1775766668495,-549.45,0.00020547,18]
[420192671,1775766668505,-187.597349,0.00020547,18]
[420192672,1775766668515,-500.0,0.00020547,18]
[420192673,1775766668526,-733.2,0.00020547,18]
[420192674,1775766668536,-854.08,0.00020547,18]
[420192675,1775766668546,-3069.05,0.00020547,18]
[420192676,1775766668570,-500.0,0.00020547,18]
[420192677,1775766668580,-1253.41060217,0.00020547,18]
[420192678,1775766669044,-76.60939783,0.00020547,18]
[420192679,1775766669054,-904.26,0.00020547,18]
[420192680,1775766669064,-500.0,0.00020547,18]
[420192681,1775766669073,-500.0,0.00020547,18]
[420192682,1775766669083,-500.0,0.00020547,18]
[420192683,1775766669096,-500.0,0.00020547,18]
[420192684,1775766669123,-762.3,0.00020547,18]
[420192685,1775766669132,-955.14,0.00020547,18]
[420192686,1775766669141,-2718.11,0.00020547,18]
[420192687,1775766669151,-329.40738572,0.00020547,18]
[420192688,1775766669160,-500.0,0.00020547,18]
[420192689,1775766669170,-500.0,0.00020547,18]
[420192690,1775766669181,-813.16,0.00020547,18]
[420192691,1775766669232,-1258.82,0.00020547,18]
[420192692,1775766669244,-824.13,0.00020547,18]
[420192693,1775766669254,-500.0,0.00020547,18]
[420192694,1775766669263,-500.0,0.00020547,18]
[420192695,1775766669274,-746.65,0.00020547,18]
[420192696,1775766669285,-1120.76,0.00020547,18]
[420192697,1775766669297,-550.38,0.00020547,18]
[420192698,1775766669306,-1224.73,0.00020547,18]
[420192699,1775766669316,-500.0,0.00020547,18]
[420192700,1775766669328,-1188.58,0.00020547,18]
[420192701,1775766669338,-500.0,0.00020547,18]
[420192702,1775766669349,-1000.0,0.00020547,2]
[420192703,1775766669373,-500.0,0.00020547,18]
[420192704,1775766669409,-1267.19,0.00020547,18]
[420192705,1775766669419,-500.0,0.00020547,18]
[420192706,1775766669428,-500.0,0.00020547,18]
[420192707,1775766669438,-500.0,0.00020547,18]
[420192708,1775766669452,-563.99,0.00020547,18]
[420192709,1775766669463,-4209.39,0.00020547,18]
[420192710,1775766669473,-500.0,0.00020547,18]
[420192711,1775766669482,-500.0,0.00020547,18]
[420192712,1775766669492,-500.0,0.00020547,10]
[420192713,1775766669501,-500.0,0.00020547,18]
[420192714,1775766669513,-2877.14,0.00020547,18]
[420192715,1775766669524,-534.62419548,0.00020547,18]
[420192716,1775766669540,-500.0,0.00020547,18]
[420192717,1775766669557,-500.0,0.00020547,18]
[420192718,1775766669568,-500.0,0.00020547,18]
[420192719,1775766669577,-500.0,0.00020547,18]
[420192720,1775766669588,-2566.82,0.00020547,18]
[420192721,1775766669598,-681.05,0.00020547,18]
[420192722,1775766669607,-500.0,0.00020547,18]
[420192723,1775766669617,-500.0,0.00020547,18]
[420192724,1775766669627,-500.0,0.00020547,18]
[420192725,1775766669636,-500.0,0.00020547,18]
[420192726,1775766669646,-500.0,0.00020547,18]
[420192727,1775766669685,-2272.87,0.00020547,18]
[420192728,1775766669695,-500.0,0.00020547,18]
[420192729,1775766669705,-610.6919012,0.00020547,18]
[420192730,1775766669715,-726.02,0.00020547,18]
[420192731,1775766669726,-500.0,0.00020547,18]
[420192732,1775766669736,-500.0,0.00020547,18]
[420192733,1775766669745,-500.0,0.00020547,18]
[420192734,1775766669765,-500.0,0.00020547,18]
[420192735,1775766669774,-500.0,0.00020547,18]
[420192736,1775766669783,-1369.46,0.00020547,18]
[420192737,1775766669792,-660.23,0.00020547,18]
[420192738,1775766669802,-500.0,0.00020547,18]
[420192739,1775766669811,-1451.36,0.00020547,18]
[420192740,1775766669820,-834.78,0.00020547,18]
[420192741,1775766669833,-500.0,0.00020547,18]
[420192742,1775766669869,-535.65,0.00020547,18]
[420192743,1775766669879,-6193.33,0.00020547,18]
[420192744,1775766669888,-500.0,0.00020547,18]
[420192745,1775766669898,-500.0,0.00020547,18]
[420192746,1775766669910,-535.43,0.00020547,18]
[420192747,1775766669919,-882.45,0.00020547,18]
[420192748,1775766669952,-500.0,0.00020547,18]
[420192749,1775766669962,-4868.55,0.00020547,18]
[420192750,1775766669971,-1814.94,0.00020547,18]
[420192751,1775766669980,-500.0,0.00020547,18]
[420192752,1775766669998,-500.0,0.00020547,18]
[420192753,1775766670010,-662.26,0.00020547,18]
[420192754,1775766670019,-946.89,0.00020547,18]
[420192755,1775766670028,-231.23327657,0.00020547,18]
[420192756,1775766670038,-3445.23,0.00020547,18]
[420192757,1775766670050,-500.0,0.00020547,18]
[420192758,1775766670059,-504.00626749,0.00020547,18]
[420192759,1775766670106,-829.97,0.00020547,18]
[420192760,1775766670116,-526.24,0.00020547,18]
[420192761,1775766670126,-3068.48,0.00020547,18]
[420192762,1775766670136,-273.72934671,0.00020547,18]
[420192763,1775766670146,-500.0,0.00020547,18]
[420192764,1775766670156,-936.3,0.00020547,18]
[420192765,1775766670166,-500.0,0.00020547,18]
[420192766,1775766670175,-895.72,0.00020547,18]
[420192767,1775766670185,-500.0,0.00020547,18]
[420192768,1775766670195,-614.65,0.00020547,18]
[420192769,1775766670204,-500.0,0.00020547,18]
[420192770,1775766670215,-500.0,0.00020547,18]
[420192771,1775766670224,-500.0,0.00020547,18]
[420192772,1775766670234,-1146.61,0.00020547,18]
[420192773,1775766670269,-295.82152937,0.00020547,18]
[420192774,1775766670279,-4391.38,0.00020547,18]
[420192775,1775766670288,-500.0,0.00020547,18]
[420192776,1775766670297,-500.0,0.00020547,18]
[420192777,1775766670306,-500.0,0.00020547,10]
[420192778,1775766670317,-562.43,0.00020547,18]
[420192779,1775766670326,-195.88809436,0.00020547,18]
[420192780,1775766670351,-1959.62,0.00020547,18]
[420192781,1775766670384,-672.44,0.00020547,18]
[420192782,1775766670394,-500.0,0.00020547,18]
[420192783,1775766670403,-823.87,0.00020547,18]
[420192784,1775766670413,-500.0,0.00020547,18]
[420192785,1775766670426,-500.0,0.00020547,18]
[420192786,1775766670436,-500.0,0.00020547,18]
[420192787,1775766670446,-500.0,0.00020547,18]
[420192788,1775766670456,-567.98,0.00020547,2]
[420192789,1775766670467,-1414.24,0.00020547,18]
[420192790,1775766670476,-2772.16,0.00020547,18]
[420192791,1775766670486,-500.0,0.00020547,18]
[420192792,1775766670496,-3885.4,0.00020547,18]
[420192793,1775766670518,-685.82,0.00020547,18]
[420192794,1775766670545,-3710.64,0.00020547,18]
[420192795,1775766670554,-500.0,0.00020547,18]
[420192796,1775766670564,-500.0,0.00020547,18]
[420192797,1775766670573,-534.61,0.00020547,18]
[420192798,1775766670583,-500.0,0.00020547,18]
[420192799,1775766670592,-1416.98,0.00020547,18]
[420192800,1775766670602,-500.0,0.00020547,18]
[420192801,1775766670620,-1493.89,0.00020547,18]
[420192802,1775766670630,-500.0,0.00020547,18]
[420192803,1775766670640,-500.0,0.00020547,18]
[420192804,1775766670649,-708.81,0.00020547,18]
[420192805,1775766670659,-472.09951401,0.00020547,18]
[420192806,1775766670668,-500.0,0.00020547,18]
[420192807,1775766670678,-500.0,0.00020547,18]
[420192808,1775766670687,-500.0,0.00020547,18]
[420192809,1775766670697,-500.0,0.00020547,18]
[420192810,1775766670706,-1287.09,0.00020547,18]
[420192811,1775766670716,-2674.21,0.00020547,18]
[420192812,1775766670751,-1078.72,0.00020547,18]
[420192813,1775766670760,-754.28,0.00020547,18]
[420192814,1775766670770,-500.0,0.00020547,18]
[420192815,1775766670780,-548.64,0.00020547,18]
[420192816,1775766670789,-500.0,0.00020547,18]
[420192817,1775766670798,-1305.51,0.00020547,18]
[420192818,1775766670808,-744.62,0.00020547,18]
[420192819,1775766670821,-637.7,0.00020547,18]
[420192820,1775766670840,-832.3,0.00020547,18]
[420192821,1775766670848,-4558.28,0.00020547,18]
[420192822,1775766670857,-500.0,0.00020547,18]
[420192823,1775766670867,-500.0,0.00020547,18]
[420192824,1775766670877,-500.0,0.00020547,18]
[420192825,1775766670886,-500.0,0.00020547,18]
[420192826,1775766670900,-570.18,0.00020547,18]
[420192827,1775766670929,-500.0,0.00020547,18]
[420192828,1775766670939,-1238.51,0.00020547,18]
[420192829,1775766670948,-500.0,0.00020547,18]
[420192830,1775766670959,-500.0,0.00020547,18]
[420192831,1775766670968,-500.0,0.00020547,18]
[420192832,1775766670978,-4694.49,0.00020547,18]
[420192833,1775766670997,-500.0,0.00020547,18]
[420192834,1775766671017,-500.0,0.00020547,18]
[420192835,1775766671027,-590.05,0.00020547,18]
[420192836,1775766671035,-985.9,0.00020547,18]
[420192837,1775766671046,-977.31,0.00020547,18]
[420192838,1775766671057,-500.0,0.00020547,18]
[420192839,1775766671067,-2267.05,0.00020547,18]
[420192840,1775766671108,-1858.85,0.00020547,18]
[420192841,1775766671118,-1003.71,0.00020547,18]
[420192842,1775766671127,-500.0,0.00020547,18]
[420192843,1775766671141,-500.0,0.00020547,11]
[420192844,1775766671153,-11765.07,0.00020547,18]
[420192845,1775766671169,-4361.65,0.00020547,18]
[420192846,1775766671181,-219.0,0.00020547,2]
[420192847,1775766671191,-500.0,0.00020547,18]
[420192848,1775766671201,-1856.84,0.00020547,18]
[420192849,1775766671213,-533.93,0.00020547,18]
[420192850,1775766671223,-500.0,0.00020547,18]
[420192851,1775766671238,-500.0,0.00020547,18]
[420192852,1775766671247,-500.0,0.00020547,18]
[420192853,1775766671256,-500.0,0.00020547,18]
[420192854,1775766671266,-2104.89,0.00020547,18]
[420192855,1775766671276,-585.97,0.00020547,18]
[420192856,1775766671286,-500.0,0.00020547,18]
[420192857,1775766671303,-3395.96,0.00020547,18]
[420192858,1775766671360,-1427.81,0.00020547,18]
[420192859,1775766671370,-10016.59,0.00020547,18]
[420192860,1775766671388,-2929.8,0.00020547,18]
[420192861,1775766671398,-750.56,0.00020547,18]
[420192862,1775766671409,-604.91,0.00020547,18]
[420192863,1775766671428,-524.9,0.00020547,18]
[420192864,1775766671438,-3291.29,0.00020547,18]
[420192865,1775766671447,-631.07,0.00020547,18]
[420192866,1775766671457,-1282.71,0.00020547,18]
[420192867,1775766671467,-163.88211606,0.00020547,18]
[420192868,1775766671479,-3430.82,0.00020547,18]
[420192869,1775766671488,-500.0,0.00020547,18]
[420192870,1775766671498,-500.0,0.00020547,18]
[420192871,1775766671507,-500.0,0.00020547,18]
[420192872,1775766671518,-4330.12,0.00020547,18]
[420192873,1775766671527,-3992.24,0.00020547,18]
[420192874,1775766671536,-1093.98,0.00020547,18]
[420192875,1775766671574,-500.0,0.00020547,18]
[420192876,1775766671591,-502.78,0.00020547,2]
[420192877,1775766671601,-608.9,0.00020547,18]
[420192878,1775766671610,-624.47,0.00020547,18]
[420192879,1775766671620,-3264.76,0.00020547,18]
[420192880,1775766671629,-1500.0,0.00020568,2]
[420192881,1775766671639,-720.0,0.0002069,2]
[420192882,1775766671648,-168.0,0.00020704,2]
[420192883,1775766671658,-1637.7115618,0.00020705,2]
[420192884,1775766671668,-168.0,0.00020715,2]
[420192885,1775766671678,-455.5310146,0.00020715,2]
[420192886,1775766671688,-197.91248521,0.00020735,2]
[420192887,1775766671698,-289.41404785,0.00020764,2]
[420192888,1775766671765,-168.0,0.00020815,2]
[420192889,1775766671774,-1000.0,0.00020821,2]
[420192890,1775766671784,-3554.3286,0.00020821,18]
[420192891,1775766671793,-2221.4554,0.00020821,18]
[420192892,1775766671802,-500.0,0.00020821,18]
[420192893,1775766671812,-500.0,0.00020821,18]
[420192894,1775766671821,-500.0,0.00020821,18]
[420192895,1775766671848,-500.0,0.00020821,18]
[420192896,1775766671857,-683.85,0.00020821,18]
[420192897,1775766671866,-500.0,0.00020821,18]
[420192898,1775766671875,-500.0,0.00020821,18]
[420192899,1775766671883,-644.38,0.00020821,18]
[420192900,1775766671892,-500.0,0.00020821,18]
[420192901,1775766671901,-374.84946148,0.00020821,18]
[420192902,1775766671911,-500.0,0.00020821,18]
[420192903,1775766671920,-500.0,0.00020821,18]
[420192904,1775766671929,-500.0,0.00020821,18]
[420192905,1775766671943,-526.96,0.00020821,18]
[420192906,1775766671983,-308.41720184,0.00020821,9]
[420192907,1775766671992,-500.0,0.00020821,18]
[420192908,1775766672002,-500.0,0.00020821,18]
[420192909,1775766672015,-500.0,0.00020821,18]
[420192910,1775766672024,-500.0,0.00020821,18]
[420192911,1775766672034,-500.0,0.00020821,18]
[420192912,1775766672050,-500.0,0.00020821,18]
[420192913,1775766672059,-500.0,0.00020821,18]
[420192914,1775766672068,-829.51,0.00020821,18]
[420192915,1775766672078,-500.0,0.00020821,18]